[Event "XVII Orsha-2019 Open"]
[Site "Orsha"]
[Date "2019.01.18"]
[Round "1.36"]
[White "Bogacheva, Anna"]
[Black "Platnitski, Siarhei"]
[Result "1/2-1/2"]
[ECO "B20"]
[WhiteElo "1955"]
[BlackElo "1383"]
[PlyCount "116"]
[EventDate "2019.01.18"]
[EventType "swiss"]
[EventCountry "BLR"]
[TimeControl "5400+30"]

1. e4 c5 2. g3 Nc6 3. Bg2 g6 4. d3 Bg7 5. c3 d6 6. Be3 e5 7. Qd2 Nge7 8. Bh6 O-O 9. Bxg7 Kxg7 10. h4 h6 11. Na3 Be6 12. Ne2 d5 13. h5 g5 14. f4 f6 15. Nc2 dxe4 16. Bxe4 Bd5 17. Ne3 Qd7 18. Nxd5 Nxd5 19. O-O-O a6 20. Kb1 b5 21. d4 exd4 22. cxd4 c4 23. Nc3 Nce7 24. Rhe1 Rfe8 25. fxg5 fxg5 26. Nxd5 Nxd5 27. Qg2 Rad8 28. Bxd5 Rxe1 29. Rxe1 Qxd5 30. Qc2 Qf7 31. Qe4 Rf8 32. d5 Qf5 33. d6 Qxe4+ 34. Rxe4 Kf6 35. Re7 Rf7 36. Re8 Rd7 37. Rh8 Kg7 38. Rb8 Rxd6 39. a4 bxa4 40. Rb4 Rc6 41. Rxa4 Kf6 42. Ra5 g4 43. Kc2 Ke6 44. Kc3 Kf6 45. Kd4 Ke6 46. Ke4 Kf6 47. Rf5+ Ke6 48. Rf8 a5 49. Rh8 Kf7 50. Rh7+ Kg8 51. Ra7 c3 52. bxc3 Rxc3 53. Kf5 Rc5+ 54. Kxg4 Rg5+ 55. Kh4 Kh8 56. g4 Kg8 57. Kg3 Kh8 58. Kf4 Kg8 1/2-1/2

[Event "XVII Orsha-2019 Open"]
[Site "Orsha"]
[Date "2019.01.18"]
[Round "1.37"]
[White "Poghosyan, Sarmen"]
[Black "Stashis, Anna"]
[Result "1/2-1/2"]
[ECO "B20"]
[WhiteElo "1361"]
[BlackElo "1931"]
[PlyCount "68"]
[EventDate "2019.01.18"]
[EventType "swiss"]
[EventCountry "BLR"]
[TimeControl "5400+30"]

1. e4 c5 2. Ne2 d6 3. g3 g6 4. Bg2 Bg7 5. O-O e6 6. c3 Ne7 7. d4 cxd4 8. cxd4 O-O 9. Nbc3 Nbc6 10. Be3 d5 11. exd5 Nxd5 12. Nxd5 exd5 13. Nf4 Be6 14. Qb3 Nxd4 15. Bxd4 Bxd4 16. Bxd5 Bxd5 17. Nxd5 Qd6 18. Rad1 Qc5 19. Rc1 Qa5 20. Rfd1 Bg7 21. Ne7+ Kh8 22. Rd5 Qa6 23. Rd7 Qe2 24. Rxb7 Rad8 25. Rf1 Rd2 26. Qe3 Qxe3 27. fxe3 Bh6 28. e4 Be3+ 29. Kh1 Bc5 30. Nd5 f5 31. Ne7 Bxe7 32. Rxe7 Rxb2 33. Rxa7 Rc8 34. exf5 Rcc2 1/2-1/2

[Event "XVII Orsha-2019 Open"]
[Site "Orsha"]
[Date "2019.01.18"]
[Round "1.38"]
[White "Dmitriev, Nikolay"]
[Black "Simonian, Anna"]
[Result "1-0"]
[ECO "E60"]
[WhiteElo "1923"]
[BlackElo "1289"]
[PlyCount "57"]
[EventDate "2019.01.18"]
[EventType "swiss"]
[EventCountry "BLR"]
[TimeControl "5400+30"]

1. Nf3 Nf6 2. g3 g6 3. Bg2 Bg7 4. O-O O-O 5. d4 d6 6. b3 Nbd7 7. Bb2 Re8 8. c4 c6 9. Qd2 Qc7 10. Nc3 e5 11. dxe5 dxe5 12. Rad1 e4 13. Ng5 e3 14. fxe3 Bh6 15. Nce4 Nxe4 16. Nxe4 f5 17. Qc3 Qe5 18. Qxe5 Nxe5 19. Nf6+ Kf7 20. Nxe8 Bxe3+ 21. Kh1 Ng4 22. Nd6+ Ke6 23. Bf3 Nf2+ 24. Rxf2 Bxf2 25. Kg2 Bc5 26. Nxc8 Rxc8 27. e4 Rf8 28. exf5+ Rxf5 29. Bg4 1-0

[Event "XVII Orsha-2019 Open"]
[Site "Orsha"]
[Date "2019.01.18"]
[Round "1.39"]
[White "Vlasov, Andrey"]
[Black "Spizharny, Mikhail"]
[Result "0-1"]
[ECO "B22"]
[WhiteElo "2316"]
[BlackElo "1923"]
[PlyCount "54"]
[EventDate "2019.01.18"]
[EventType "swiss"]
[EventCountry "BLR"]
[TimeControl "5400+30"]

1. e4 c5 2. c3 Nf6 3. e5 Nd5 4. d4 cxd4 5. Nf3 e6 6. Bc4 Nb6 7. Qb3 Nc6 8. cxd4 Na5 9. Qb5 Naxc4 10. a4 a6 11. Qb3 Na5 12. Qc2 Nd5 13. Bd2 Nb4 14. Qc3 b6 15. O-O Bb7 16. Bg5 Be7 17. Bxe7 Qxe7 18. Nbd2 Rc8 19. Qe3 Nc2 20. Qf4 Nxa1 21. Rxa1 O-O 22. Ra3 Nc4 23. Nxc4 Rxc4 24. Ng5 Rxd4 25. Qxd4 Qxg5 26. Kf1 Qxg2+ 27. Ke2 Qe4+ 0-1

[Event "XVII Orsha-2019 Open"]
[Site "Orsha"]
[Date "2019.01.18"]
[Round "2"]
[White "Grishchenko, Sergey"]
[Black "Bury, Gleb M"]
[Result "1-0"]
[ECO "D92"]
[WhiteElo "2409"]
[BlackElo "1961"]
[Annotator "NA"]
[PlyCount "31"]
[EventDate "2019.01.18"]
[EventType "swiss"]
[EventCountry "BLR"]
[SourceTitle "playchess.com"]
[Source "ChessBase"]
[SourceQuality "1"]
[TimeControl "5400+30"]

1. d4 {[%emt 0:00:00]} Nf6 {[%emt 0:00:00]} 2. c4 {[%emt 0:00:00]} g6 {[%emt 0:00:00]} 3. Nc3 {[%emt 0:00:00]} d5 {[%emt 0:00:00]} 4. Bf4 {[%emt 0:00:00]} Bg7 {[%emt 0:01:34]} 5. Nf3 {[%emt 0:00:03]} O-O {[%emt 0:01:04]} 6. Rc1 {[%emt 0:00:04]} Be6 {[%emt 0:03:19]} 7. Qb3 {[%emt 0:06:34]} b6 {[%emt 0:10:02]} 8. e3 {[%emt 0:20:52]} Nc6 {[%emt 0:09:00]} 9. Qa4 {[%emt 0:15:07]} Na5 {[%emt 0:14:10]} 10. cxd5 {[%emt 0:01:19]} Nxd5 {[%emt 0:07:50]} 11. Nxd5 {[%emt 0:06:43]} Bxd5 {[%emt 0:04:25]} 12. Bxc7 {[%emt 0:18:07]} Rc8 {[%emt 0:15:16]} 13. Bxd8 {[%emt 0:01:09]} Rxc1+ {[%emt 0:00:03]} 14. Kd2 {[%emt 0:00:09]} Ra1 {[%emt 0:00:17]} 15. Bxe7 {[%emt 0:01:15]} Rc8 {[%emt 0:23:07]} 16. Ba6 {[%emt 0:02:13]} 1-0

[Event "XVII Orsha-2019 Open"]
[Site "Orsha"]
[Date "2019.01.18"]
[Round "2"]
[White "Vorobjov, Pavel"]
[Black "Dmitriev, Nikolay"]
[Result "1-0"]
[ECO "A12"]
[WhiteElo "2296"]
[BlackElo "1923"]
[Annotator "NA"]
[PlyCount "55"]
[EventDate "2019.01.18"]
[EventType "swiss"]
[EventCountry "BLR"]
[SourceTitle "playchess.com"]
[Source "ChessBase"]
[SourceQuality "1"]
[TimeControl "5400+30"]

1. Nf3 {[%emt 0:00:00]} d5 {[%emt 0:00:00]} 2. c4 {[%emt 0:00:00]} c6 {[%emt 0:00:00]} 3. b3 {[%emt 0:00:25]} Nf6 {[%emt 0:01:10]} 4. Bb2 {[%emt 0:00:17]} Bf5 {[%emt 0:01:20]} 5. g3 {[%emt 0:00:57]} e6 {[%emt 0:00:34]} 6. Bg2 {[%emt 0:00:31]} Nbd7 {[%emt 0:00:25]} 7. O-O {[%emt 0:00:25]} Bd6 {[%emt 0:01:38]} 8. d3 {[%emt 0:00:48]} Qe7 {[%emt 0:04:55]} 9. Nbd2 {[%emt 0:03:29]} e5 {[%emt 0:01:44]} 10. cxd5 {[%emt 0:02:51]} cxd5 {[%emt 0:00:08]} 11. Nh4 {[%emt 0:03:04]} Be6 {[%emt 0:02:21]} 12. e4 {[%emt 0:01:38]} O-O {[%emt 0:04:13]} 13. exd5 {[%emt 0:10:33]} Nxd5 {[%emt 0:02:40]} 14. Nc4 {[%emt 0:02:44]} Rac8 {[%emt 0:04:10]} 15. Bxd5 {[%emt 0:02:27]} Bxd5 {[%emt 0:01:34]} 16. Nf5 {[%emt 0:00:13]} Qf6 {[%emt 0:01:15]} 17. Nfxd6 {[%emt 0:06:18]} Bf3 {[%emt 0:04:48]} 18. Ne4 {[%emt 0:03:49]} Qf5 {[%emt 0:00:52]} 19. Ne3 {[%emt 0:00:34]} Qh5 {[%emt 0:00:22]} 20. g4 {[%emt 0:00:14]} Bxd1 {[%emt 0:03:03]} 21. gxh5 {[%emt 0:00:25]} Bxh5 {[%emt 0:01:19]} 22. Nf5 {[%emt 0:03:25]} Rc2 {[%emt 0:03:30]} 23. Ba3 {[%emt 0:00:26]} Re8 {[%emt 0:00:16]} 24. Rfc1 {[%emt 0:00:45]} Rxc1+ {[%emt 0:00:26]} 25. Rxc1 {[%emt 0:00:09]} Bg4 {[%emt 0:01:07]} 26. Rc7 {[%emt 0:04:55]} Nb6 {[%emt 0:02:36]} 27. Nh6+ {[%emt 0:00:45]} gxh6 {[%emt 0:00:14]} 28. Nf6+ {[%emt 0:00:11]} 1-0

[Event "XVII Orsha-2019 Open"]
[Site "Orsha"]
[Date "2019.01.18"]
[Round "2"]
[White "Elkin, Leonid"]
[Black "Mihajlovskij, Sergei"]
[Result "0-1"]
[ECO "A44"]
[WhiteElo "2085"]
[BlackElo "2406"]
[Annotator "NA"]
[PlyCount "56"]
[EventDate "2019.01.18"]
[EventType "swiss"]
[EventCountry "BLR"]
[SourceTitle "playchess.com"]
[Source "ChessBase"]
[SourceQuality "1"]
[TimeControl "5400+30"]

1. d4 {[%emt 0:00:00]} c5 {[%emt 0:09:10]} 2. d5 {[%emt 0:00:00]} e5 {[%emt 0:00:07]} 3. c4 {[%emt 0:00:00]} d6 {[%emt 0:00:04]} 4. e4 {[%emt 0:00:06]} Be7 {[%emt 0:00:06]} 5. Nc3 {[%emt 0:00:50]} Bg5 {[%emt 0:01:22]} 6. h3 {[%emt 0:02:23]} Bxc1 {[%emt 0:02:15]} 7. Rxc1 {[%emt 0:00:05]} Ne7 {[%emt 0:01:27]} 8. Bd3 {[%emt 0:05:47]} a6 {[%emt 0:05:15]} 9. Nge2 {[%emt 0:06:01]} Nd7 {[%emt 0:01:36]} 10. O-O {[%emt 0:01:27]} O-O {[%emt 0:03:17]} 11. Ng3 {[%emt 0:01:56]} Rb8 {[%emt 0:11:55]} 12. Nf5 {[%emt 0:06:06]} Nf6 {[%emt 0:11:27]} 13. Qf3 {[%emt 0:06:24]} g6 {[%emt 0:06:27]} 14. Ne3 {[%emt 0:04:08]} Nh5 {[%emt 0:03:59]} 15. Qd1 {[%emt 0:29:09]} Nf4 {[%emt 0:06:25]} 16. Ne2 {[%emt 0:02:38]} b5 {[%emt 0:07:09]} 17. b3 {[%emt 0:02:58]} Bd7 {[%emt 0:04:37]} 18. Qd2 {[%emt 0:07:04]} f6 {[%emt 0:00:44]} 19. cxb5 {[%emt 0:04:00]} axb5 {[%emt 0:00:57]} 20. Ra1 {[%emt 0:05:24]} Ra8 {[%emt 0:00:28]} 21. Rfc1 {[%emt 0:01:27]} Qb6 {[%emt 0:08:09]} 22. Nxf4 {[%emt 0:02:39]} exf4 {[%emt 0:00:02]} 23. Nd1 {[%emt 0:00:06]} g5 {[%emt 0:00:33]} 24. Nb2 {[%emt 0:00:33]} Ra3 {[%emt 0:00:42]} 25. Qe2 {[%emt 0:00:25]} Ng6 {[%emt 0:00:26]} 26. Qh5 {[%emt 0:03:03]} Ne5 {[%emt 0:00:42]} 27. Bf1 {[%emt 0:01:10]} Be8 {[%emt 0:01:19]} 28. Qh6 {[%emt 0:00:20]} Bg6 {[%emt 0:00:24]} 0-1

[Event "XVII Orsha-2019 Open"]
[Site "Orsha"]
[Date "2019.01.18"]
[Round "2"]
[White "Kirilin, Dmitrij"]
[Black "Lazavik, Denis"]
[Result "0-1"]
[ECO "D12"]
[WhiteElo "2074"]
[BlackElo "2296"]
[Annotator "NA"]
[PlyCount "150"]
[EventDate "2019.01.18"]
[EventType "swiss"]
[EventCountry "BLR"]
[SourceTitle "playchess.com"]
[Source "ChessBase"]
[SourceQuality "1"]
[TimeControl "5400+30"]

1. d4 {[%emt 0:00:00]} d5 {[%emt 0:00:00]} 2. c4 {[%emt 0:00:00]} c6 {[%emt 0:00:12]} 3. Nf3 {[%emt 0:00:06]} Nf6 {[%emt 0:00:30]} 4. e3 {[%emt 0:01:33]} Bf5 {[%emt 0:01:13]} 5. Nc3 {[%emt 0:00:19]} e6 {[%emt 0:00:35]} 6. Nh4 {[%emt 0:00:18]} Bg6 {[%emt 0:01:08]} 7. Nxg6 {[%emt 0:00:36]} hxg6 {[%emt 0:00:13]} 8. a3 {[%emt 0:01:03]} Nbd7 {[%emt 0:04:55]} 9. b3 {[%emt 0:06:03]} Bd6 {[%emt 0:03:36]} 10. h3 {[%emt 0:00:12]} Qe7 {[%emt 0:02:05]} 11. Bb2 {[%emt 0:00:36]} O-O {[%emt 0:01:33]} 12. Be2 {[%emt 0:00:25]} dxc4 {[%emt 0:06:22]} 13. Bxc4 {[%emt 0:01:52]} e5 {[%emt 0:01:40]} 14. O-O {[%emt 0:08:48]} Nb6 {[%emt 0:01:16]} 15. Be2 {[%emt 0:02:32]} Rad8 {[%emt 0:03:09]} 16. Na4 {[%emt 0:11:14]} Nxa4 {[%emt 0:02:01]} 17. bxa4 {[%emt 0:00:10]} exd4 {[%emt 0:00:07]} 18. exd4 {[%emt 0:03:40]} Bc7 {[%emt 0:01:50]} 19. Qc2 {[%emt 0:01:43]} Rfe8 {[%emt 0:03:08]} 20. Bf3 {[%emt 0:02:04]} Nd5 {[%emt 0:01:37]} 21. g3 {[%emt 0:02:04]} Bb6 {[%emt 0:03:12]} 22. Rfe1 {[%emt 0:04:08]} Qxe1+ {[%emt 0:02:02]} 23. Rxe1 {[%emt 0:00:01]} Rxe1+ {[%emt 0:00:09]} 24. Kg2 {[%emt 0:00:15]} Nf6 {[%emt 0:01:17]} 25. Qd2 {[%emt 0:06:00]} Re6 {[%emt 0:02:09]} 26. Qb4 {[%emt 0:03:36]} Nd5 {[%emt 0:00:25]} 27. Qb3 {[%emt 0:09:11]} Re7 {[%emt 0:00:36]} 28. h4 {[%emt 0:01:15]} Red7 {[%emt 0:06:51]} 29. Bg4 {[%emt 0:00:56]} Rc7 {[%emt 0:00:45]} 30. Bf3 {[%emt 0:01:11]} Ne7 {[%emt 0:01:46]} 31. Bc1 {[%emt 0:05:06]} Nf5 {[%emt 0:10:15]} 32. Bf4 {[%emt 0:03:06]} Rcd7 {[%emt 0:00:44]} 33. Be4 {[%emt 0:13:58]} Nxd4 {[%emt 0:01:30]} 34. Qc4 {[%emt 0:03:26]} Ne6 {[%emt 0:00:23]} 35. Bc1 {[%emt 0:00:16]} Rd4 {[%emt 0:01:06]} 36. Qe2 {[%emt 0:00:27]} Re8 {[%emt 0:00:32]} 37. Qc2 {[%emt 0:02:13]} Nf4+ {[%emt 0:00:15]} 38. Bxf4 {[%emt 0:00:02]} Rdxe4 {[%emt 0:00:07]} 39. Kf3 {[%emt 0:01:02]} Re2 {[%emt 0:00:28]} 40. Qxe2 {[%emt 0:00:12]} Rxe2 41. Kxe2 {[%emt 0:00:01]} f6 {[%emt 0:00:21]} 42. f3 {[%emt 0:01:18]} Kf7 {[%emt 0:00:13]} 43. g4 {[%emt 0:00:15]} Ke6 {[%emt 0:00:21]} 44. Kd3 {[%emt 0:00:21]} Bc5 {[%emt 0:00:42]} 45. Bc1 {[%emt 0:00:08]} Kd5 {[%emt 0:00:09]} 46. h5 {[%emt 0:00:48]} gxh5 {[%emt 0:00:18]} 47. gxh5 {[%emt 0:00:01]} Bd6 {[%emt 0:00:22]} 48. Bb2 {[%emt 0:00:59]} c5 {[%emt 0:00:16]} 49. Bc1 {[%emt 0:00:03]} Be5 {[%emt 0:01:24]} 50. Kc2 {[%emt 0:00:20]} c4 {[%emt 0:00:31]} 51. h6 {[%emt 0:00:28]} gxh6 {[%emt 0:00:06]} 52. Bxh6 {[%emt 0:00:01]} Kc5 {[%emt 0:00:26]} 53. Bf8+ {[%emt 0:01:09]} Kd5 {[%emt 0:00:11]} 54. Bh6 {[%emt 0:00:15]} Bd4 {[%emt 0:00:36]} 55. Bf4 {[%emt 0:01:07]} Ke6 {[%emt 0:00:15]} 56. Bd2 {[%emt 0:01:03]} Ke5 {[%emt 0:01:54]} 57. Bh6 {[%emt 0:00:24]} Kf5 {[%emt 0:00:43]} 58. Bd2 {[%emt 0:00:14]} Be5 {[%emt 0:00:18]} 59. Be3 {[%emt 0:00:53]} a6 {[%emt 0:00:04]} 60. Bd2 {[%emt 0:01:09]} Ke6 {[%emt 0:00:43]} 61. Be3 {[%emt 0:00:16]} Kd5 {[%emt 0:00:45]} 62. Bh6 {[%emt 0:00:43]} f5 {[%emt 0:00:45]} 63. Bc1 {[%emt 0:00:56]} Bd6 {[%emt 0:00:43]} 64. Kc3 {[%emt 0:00:11]} Be7 {[%emt 0:00:13]} 65. Kc2 {[%emt 0:00:25]} Kd4 {[%emt 0:00:07]} 66. Bb2+ {[%emt 0:00:45]} Ke3 {[%emt 0:00:06]} 67. Bc1+ {[%emt 0:00:12]} Kxf3 {[%emt 0:00:25]} 68. Kc3 {[%emt 0:00:11]} Ke4 {[%emt 0:00:48]} 69. Kxc4 {[%emt 0:02:05]} f4 {[%emt 0:00:06]} 70. Bb2 {[%emt 0:03:45]} f3 {[%emt 0:00:13]} 71. Bd4 {[%emt 0:00:05]} Bxa3 {[%emt 0:00:21]} 72. Bf2 {[%emt 0:01:54]} Bc1 {[%emt 0:00:04]} 73. Bc5 {[%emt 0:00:45]} Be3 {[%emt 0:00:14]} 74. Kb4 {[%emt 0:00:02]} Bxc5+ {[%emt 0:00:14]} 75. Ka5 {[%emt 0:00:01]} b5 {[%emt 0:00:14]} 0-1

[Event "XVII Orsha-2019 Open"]
[Site "Orsha"]
[Date "2019.01.18"]
[Round "2"]
[White "Khobotova, Olesia"]
[Black "Aliakbarov, Anar"]
[Result "1/2-1/2"]
[ECO "C68"]
[WhiteElo "1978"]
[BlackElo "2282"]
[Annotator "NA"]
[PlyCount "118"]
[EventDate "2019.01.18"]
[EventType "swiss"]
[EventCountry "BLR"]
[SourceTitle "playchess.com"]
[Source "ChessBase"]
[SourceQuality "1"]
[TimeControl "5400+30"]

1. e4 {[%emt 0:02:37]} e5 {[%emt 0:01:24]} 2. Nf3 {[%emt 0:00:09]} Nc6 {[%emt 0:00:12]} 3. Bb5 {[%emt 0:00:10]} a6 {[%emt 0:00:05]} 4. Bxc6 {[%emt 0:00:12]} dxc6 {[%emt 0:00:07]} 5. O-O {[%emt 0:00:07]} f6 {[%emt 0:02:02]} 6. d4 {[%emt 0:00:37]} exd4 {[%emt 0:00:21]} 7. Qxd4 {[%emt 0:01:35]} Qxd4 {[%emt 0:00:33]} 8. Nxd4 {[%emt 0:00:07]} Bd7 {[%emt 0:02:04]} 9. Nc3 {[%emt 0:04:01]} O-O-O {[%emt 0:00:21]} 10. Be3 {[%emt 0:01:14]} g6 {[%emt 0:02:17]} 11. Rad1 {[%emt 0:01:41]} Nh6 {[%emt 0:03:56]} 12. f3 {[%emt 0:02:39]} Re8 {[%emt 0:02:53]} 13. a3 {[%emt 0:10:15]} Nf7 {[%emt 0:11:09]} 14. Nb3 {[%emt 0:09:46]} b6 {[%emt 0:01:17]} 15. Bd4 {[%emt 0:02:08]} Bg7 {[%emt 0:00:58]} 16. Nc1 {[%emt 0:04:09]} c5 {[%emt 0:04:56]} 17. Bf2 {[%emt 0:01:16]} f5 {[%emt 0:01:10]} 18. exf5 {[%emt 0:11:13]} Bxf5 {[%emt 0:01:37]} 19. Nd3 {[%emt 0:00:52]} Rd8 {[%emt 0:18:12]} 20. Rfe1 {[%emt 0:19:12]} Bxd3 {[%emt 0:07:01]} 21. Rxd3 {[%emt 0:04:23]} Rxd3 {[%emt 0:00:08]} 22. cxd3 {[%emt 0:02:12]} Rd8 {[%emt 0:08:59]} 23. Re7 Bxc3 24. bxc3 {[%emt 0:04:25]} Rxd3 {[%emt 0:03:07]} 25. Bxc5 {[%emt 0:08:53]} Rxc3 {[%emt 0:03:48]} 26. Bb4 {[%emt 0:04:46]} Rc1+ {[%emt 0:00:15]} 27. Kf2 {[%emt 0:00:03]} Nd8 {[%emt 0:00:41]} 28. Rxh7 {[%emt 0:00:21]} Rc2+ {[%emt 0:01:23]} 29. Kg3 {[%emt 0:00:52]} c5 {[%emt 0:01:01]} 30. Be1 {[%emt 0:00:10]} Nc6 {[%emt 0:01:54]} 31. h4 {[%emt 0:02:17]} b5 {[%emt 0:03:01]} 32. Rg7 {[%emt 0:00:43]} Ne5 {[%emt 0:00:27]} 33. Kh3 {[%emt 0:00:12]} Rc1 {[%emt 0:00:41]} 34. Bf2 {[%emt 0:01:56]} a5 {[%emt 0:03:14]} 35. Be3 {[%emt 0:00:45]} Rh1+ {[%emt 0:01:58]} 36. Kg3 {[%emt 0:00:06]} c4 {[%emt 0:00:13]} 37. Bd4 {[%emt 0:00:35]} Nc6 {[%emt 0:00:53]} 38. Bb6 {[%emt 0:00:20]} Kb8 {[%emt 0:00:46]} 39. Rc7 {[%emt 0:00:47]} Nd4 {[%emt 0:03:14]} 40. Bxa5 {[%emt 0:00:46]} Ra1 {[%emt 0:00:17]} 41. Rd7 {[%emt 0:01:03]} Nf5+ {[%emt 0:00:20]} 42. Kg4 {[%emt 0:00:23]} Rxa3 {[%emt 0:00:13]} 43. Bd2 {[%emt 0:00:43]} c3 {[%emt 0:05:17]} 44. Bf4+ {[%emt 0:00:29]} Kc8 {[%emt 0:00:03]} 45. Rc7+ {[%emt 0:00:22]} Kd8 {[%emt 0:00:03]} 46. h5 {[%emt 0:00:42]} Ne3+ {[%emt 0:00:24]} 47. Kg3 {[%emt 0:00:37]} g5 {[%emt 0:02:22]} 48. Be5 {[%emt 0:00:30]} Nc4 {[%emt 0:01:10]} 49. Rc5 {[%emt 0:00:31]} Nxe5 {[%emt 0:04:38]} 50. Rxe5 {[%emt 0:00:02]} b4 {[%emt 0:00:10]} 51. Rc5 {[%emt 0:00:51]} Ra6 {[%emt 0:00:20]} 52. Rc4 {[%emt 0:00:32]} Rb6 {[%emt 0:00:05]} 53. h6 {[%emt 0:00:14]} Rxh6 {[%emt 0:01:32]} 54. Rxb4 {[%emt 0:00:01]} Rc6 {[%emt 0:01:05]} 55. Rb1 {[%emt 0:00:02]} c2 {[%emt 0:00:36]} 56. Rc1 {[%emt 0:00:01]} Ke7 {[%emt 0:00:02]} 57. f4 {[%emt 0:01:31]} gxf4+ {[%emt 0:01:01]} 58. Kxf4 {[%emt 0:00:02]} Kf6 {[%emt 0:00:08]} 59. Ke3 {[%emt 0:00:46]} Ke5 {Ke4+} 1/2-1/2

[Event "XVII Orsha-2019 Open"]
[Site "Orsha"]
[Date "2019.01.18"]
[Round "2.11"]
[White "Spizharny, Mikhail"]
[Black "Afonasieva, Anna"]
[Result "1/2-1/2"]
[ECO "B12"]
[WhiteElo "1923"]
[BlackElo "2265"]
[PlyCount "177"]
[EventDate "2019.01.18"]
[EventType "swiss"]
[EventCountry "BLR"]
[TimeControl "5400+30"]

1. e4 c6 2. d4 d5 3. e5 Bf5 4. h4 Qb6 5. Nc3 h5 6. Nge2 e6 7. Ng3 Bg6 8. Be2 Be7 9. Nxh5 Bxh5 10. Bxh5 g6 11. Be2 Rxh4 12. Rxh4 Bxh4 13. Qd3 Nd7 14. Bd2 Nxe5 15. dxe5 Qxf2+ 16. Kd1 Qxg2 17. Qf3 Qg1+ 18. Bf1 Ne7 19. Ne2 Qb6 20. b3 Qf2 21. Qxf2 Bxf2 22. Bg5 Kd7 23. Kd2 Rh8 24. Bg2 Rh2 25. Bh1 Nf5 26. Rf1 Bg3 27. Bf6 c5 28. Bf3 Bf4+ 29. Kd3 Bh6 30. Rh1 Rf2 31. Bg4 Ne3 32. Rxh6 Nxg4 33. Rh7 Kc6 34. Bg7 Rf5 35. Bh8 d4 36. c3 Nf2+ 37. Kd2 Ne4+ 38. Kd3 Ng5 39. Rh4 Rf3+ 40. Kd2 d3 41. Nc1 Rf1 42. Nxd3 Nf3+ 43. Ke2 Nxh4 44. Kxf1 Kd5 45. Ke2 c4 46. Nb2 cxb3 47. axb3 b5 48. Bf6 Nf5 49. b4 Ng3+ 50. Kd3 Nh5 51. Nd1 Nf4+ 52. Kd2 Ke4 53. Ne3 Nh5 54. Be7 Kxe5 55. Bc5 a6 56. c4 f5 57. Bb6 bxc4 58. Nxc4+ Kd5 59. Kc3 Ng3 60. Kd3 Ne4 61. Bd4 g5 62. Ne3+ Kc6 63. Bg7 Kb5 64. Bf8 Nf6 65. Be7 Ne4 66. Kd4 Nd2 67. Ng2 f4 68. Ne1 g4 69. Nd3 Nc4 70. Nxf4 e5+ 71. Ke4 exf4 72. Kxf4 Nb6 73. Kxg4 Nd5 74. Bf8 Nxb4 75. Kf3 a5 76. Ke2 Kc4 77. Kd2 Kb3 78. Bg7 Na2 79. Ba1 a4 80. Kd3 Nb4+ 81. Kd2 a3 82. Bh8 Nd5 83. Bd4 Ne7 84. Be5 Nf5 85. Bh8 Nd6 86. Ba1 Ka2 87. Bh8 Kb1 88. Kc3 a2 89. Kb3 1/2-1/2

[Event "XVII Orsha-2019 Open"]
[Site "Orsha"]
[Date "2019.01.18"]
[Round "2.12"]
[White "Cherepov, Alexej"]
[Black "Katkov, Mikhail"]
[Result "1-0"]
[ECO "E01"]
[WhiteElo "2226"]
[BlackElo "1916"]
[PlyCount "39"]
[EventDate "2019.01.18"]
[EventType "swiss"]
[EventCountry "BLR"]
[TimeControl "5400+30"]

1. d4 Nf6 2. c4 e6 3. g3 d5 4. Bg2 c6 5. Nf3 Bd6 6. O-O Nbd7 7. Nbd2 O-O 8. b3 e5 9. cxd5 Nxd5 10. Nc4 Bc7 11. Ncxe5 Nxe5 12. dxe5 h6 13. Bb2 Bf5 14. Qc1 Nb4 15. Qf4 Nc2 16. Qxf5 Nxa1 17. Bxa1 a5 18. e6 f6 19. Nh4 a4 20. Be4 1-0

[Event "XVII Orsha-2019 Open"]
[Site "Orsha"]
[Date "2019.01.18"]
[Round "2.13"]
[White "Zeliantsova, Kseniya"]
[Black "Shkalov, Oleg"]
[Result "1/2-1/2"]
[ECO "B31"]
[WhiteElo "1858"]
[BlackElo "2225"]
[PlyCount "55"]
[EventDate "2019.01.18"]
[EventType "swiss"]
[EventCountry "BLR"]
[TimeControl "5400+30"]

1. e4 c5 2. Nf3 Nc6 3. Bb5 g6 4. O-O Bg7 5. c3 e5 6. d3 Nge7 7. Be3 Qb6 8. Na3 O-O 9. b4 d6 10. Rb1 Be6 11. bxc5 dxc5 12. Nc4 Qc7 13. Bxc5 Bxc4 14. Bxc4 Na5 15. Bxe7 Qxe7 16. Bd5 Qa3 17. Qd2 Rac8 18. Rfc1 Rc7 19. c4 b6 20. Rc3 Qe7 21. Rbc1 Qc5 22. Qg5 Qd6 23. h4 h6 24. Qg4 h5 25. Qg5 Nb7 26. Qe3 Nc5 27. R1c2 Kh7 28. Ng5+ 1/2-1/2

[Event "XVII Orsha-2019 Open"]
[Site "Orsha"]
[Date "2019.01.18"]
[Round "2.14"]
[White "Siniauski, Artsiom"]
[Black "Poliakova, Varvara"]
[Result "1-0"]
[ECO "C90"]
[WhiteElo "2182"]
[BlackElo "1835"]
[PlyCount "99"]
[EventDate "2019.01.18"]
[EventType "swiss"]
[EventCountry "BLR"]
[TimeControl "5400+30"]

1. e4 e5 2. Nf3 Nc6 3. Bb5 a6 4. Ba4 Nf6 5. d3 b5 6. Bb3 Be7 7. O-O d6 8. c3 O-O 9. Re1 Na5 10. Bc2 c5 11. Nbd2 Qc7 12. Nf1 Ne8 13. Ng3 g6 14. d4 Ng7 15. b3 Nc6 16. Bb2 f6 17. h3 Nd8 18. a4 Bb7 19. Bd3 bxa4 20. Rxa4 Nde6 21. Bc4 Kh8 22. d5 Nf4 23. Bc1 Ngh5 24. Kh2 Rfb8 25. Be3 Bc8 26. Qd2 Qd7 27. Ng1 Nxg3 28. fxg3 Nh5 29. g4 Ng7 30. Bh6 Qc7 31. Rea1 a5 32. Qa2 Bd8 33. b4 cxb4 34. cxb4 Qa7 35. bxa5 Bd7 36. Ra3 g5 37. Bxg7+ Kxg7 38. Ne2 Rb4 39. Ng3 Qd4 40. Be2 Qc5 41. Rf1 Kf7 42. a6 Bb5 43. Bxb5 Qxb5 44. Qf2 Rb2 45. Qf5 Rxg2+ 46. Kxg2 Qb2+ 47. Rf2 Qxa3 48. Qd7+ Be7 49. Nf5 Re8 50. Qe6+ 1-0

[Event "XVII Orsha-2019 Open"]
[Site "Orsha"]
[Date "2019.01.18"]
[Round "2.15"]
[White "Prutskov, Aleksei"]
[Black "Galkin, Gleb"]
[Result "0-1"]
[ECO "D26"]
[WhiteElo "1824"]
[BlackElo "2156"]
[PlyCount "102"]
[EventDate "2019.01.18"]
[EventType "swiss"]
[EventCountry "BLR"]
[TimeControl "5400+30"]

1. d4 d5 2. Nf3 Nf6 3. c4 e6 4. Nc3 Be7 5. Bf4 O-O 6. e3 c5 7. Bd3 cxd4 8. exd4 dxc4 9. Bxc4 Nbd7 10. O-O Nb6 11. Bd3 Nbd5 12. Bg3 b6 13. Rc1 Bb7 14. Ne5 Rc8 15. Bb1 g6 16. Qd2 Nh5 17. f4 Nxg3 18. hxg3 Bf6 19. g4 Bg7 20. g5 Ne7 21. g4 Nc6 22. Rcd1 Nxe5 23. fxe5 Qd7 24. Qe3 Rfd8 25. Rf2 Rc4 26. Rfd2 Qc6 27. Ne4 Rc1 28. Bd3 Rxd1+ 29. Rxd1 Qa4 30. Be2 Bxe5 31. Nf6+ Bxf6 32. gxf6 Qc6 33. Bf1 Qh1+ 34. Kf2 Qh4+ 35. Qg3 Qxf6+ 36. Ke3 e5 37. dxe5 Qg5+ 38. Ke2 Ba6+ 39. Ke1 Rxd1+ 40. Kxd1 Bxf1 41. Qf3 Bc4 42. Qa8+ Kg7 43. Qxa7 Qxg4+ 44. Kd2 Qd4+ 45. Kc2 Qd3+ 46. Kc1 Qe3+ 47. Kc2 Bd3+ 48. Kc3 Bb1+ 49. Kb4 Qc5+ 50. Ka4 b5+ 51. Ka5 Qxa7+ 0-1

[Event "XVII Orsha-2019 Open"]
[Site "Orsha"]
[Date "2019.01.18"]
[Round "2.16"]
[White "Kuleba, Ivan"]
[Black "Vashchilov, Sergey"]
[Result "0-1"]
[ECO "A11"]
[WhiteElo "1617"]
[BlackElo "2134"]
[PlyCount "90"]
[EventDate "2019.01.18"]
[EventType "swiss"]
[EventCountry "BLR"]
[TimeControl "5400+30"]

1. c4 e6 2. Nf3 d5 3. e3 Nf6 4. Nc3 c6 5. b3 Nbd7 6. Bb2 Bd6 7. Qc2 O-O 8. Rg1 a6 9. g4 Nc5 10. d4 Ncd7 11. Bd3 g6 12. Ne2 Qe7 13. Ne5 Ne8 14. g5 Bb4+ 15. Bc3 Nxe5 16. dxe5 b5 17. Qd2 Bxc3 18. Qxc3 bxc4 19. bxc4 c5 20. f4 Bb7 21. Kf2 Ng7 22. Rg4 Rfd8 23. Rag1 Qd7 24. R1g3 dxc4 25. Bxc4 Be4 26. Rg1 Qb7 27. h4 Rd7 28. Rc1 Rad8 29. Rgg1 Nf5 30. Qb3 Qc6 31. Rgd1 Bg2 32. Ng1 Bh1 33. Bf1 Nxh4 34. Rxd7 Rxd7 35. Rd1 Bd5 36. Qa3 Kg7 37. Rc1 Bg2 38. Qxc5 Rd2+ 39. Be2 Qb7 40. Rd1 Rxd1 41. Bxd1 Bh1 42. Ke1 Qg2 43. Qe7 Qxg1+ 44. Kd2 Qxe3+ 45. Kc2 Qxf4 0-1